[Event "*** Titled Tuesday Blitz"]
[Site "Chess.com"]
[Date "2020.11.24"]
[Round "2"]
[White "Eternauta2400"]
[Black "Evgeny81"]
[Result "0-1"]
[WhiteElo "2475"]
[BlackElo "2724"]
[TimeControl "180+1"]
[EndTime "10:33:35 PST"]
[Termination "Evgeny81 won on time"]

1. d4 {[%clk 0:03:00.9]} 1... Nf6 {[%clk 0:02:59.5]} 2. Bg5 {[%clk 0:03:00.7]}
2... Ne4 {[%clk 0:02:57.9]} 3. Bf4 {[%clk 0:03:00.7]} 3... c5 {[%clk 0:02:53.2]}
4. f3 {[%clk 0:03:00.6]} 4... Nf6 {[%clk 0:02:51.6]} 5. dxc5 {[%clk 0:03:00.1]}
5... Qa5+ {[%clk 0:02:48.2]} 6. Qd2 {[%clk 0:03:00]} 6... Qxc5 {[%clk
0:02:46.6]} 7. Nc3 {[%clk 0:03:00.6]} 7... d6 {[%clk 0:02:45]} 8. e4 {[%clk
0:03:00]} 8... g6 {[%clk 0:02:38.6]} 9. O-O-O {[%clk 0:02:59.8]} 9... Bg7 {[%clk
0:02:38.6]} 10. e5 {[%clk 0:02:33.7]} 10... Nh5 {[%clk 0:02:38.5]} 11. exd6
{[%clk 0:02:33.7]} 11... Nxf4 {[%clk 0:02:35.1]} 12. dxe7 {[%clk 0:02:26.9]}
12... Qxe7 {[%clk 0:02:18.1]} 13. Bb5+ {[%clk 0:02:25.7]} 13... Nc6 {[%clk
0:02:07.1]} 14. Qxf4 {[%clk 0:02:23.2]} 14... Bxc3 {[%clk 0:02:05.1]} 15. Bxc6+
{[%clk 0:02:14.9]} 15... bxc6 {[%clk 0:02:06]} 16. bxc3 {[%clk 0:02:14.5]} 16...
O-O {[%clk 0:01:53.3]} 17. Qb4 {[%clk 0:01:29.9]} 17... Qe3+ {[%clk 0:01:37.3]}
18. Kb1 {[%clk 0:01:29.4]} 18... Be6 {[%clk 0:01:12.9]} 19. Qd4 {[%clk
0:01:25.5]} 19... Rab8+ {[%clk 0:01:01.2]} 20. Ka1 {[%clk 0:01:23.8]} 20... Rfd8
{[%clk 0:01:00.2]} 21. Qxd8+ {[%clk 0:01:06]} 21... Rxd8 {[%clk 0:01:01.1]} 22.
Rxd8+ {[%clk 0:01:06.2]} 22... Kg7 {[%clk 0:01:01.7]} 23. Nh3 {[%clk 0:00:46]}
23... Qxc3+ {[%clk 0:00:58]} 24. Kb1 {[%clk 0:00:45.9]} 24... Bxa2+ {[%clk
0:00:43.5]} 25. Kxa2 {[%clk 0:00:37.4]} 25... Qxc2+ {[%clk 0:00:40.4]} 26. Ka3
{[%clk 0:00:35.5]} 26... Qc3+ {[%clk 0:00:40.3]} 27. Ka4 {[%clk 0:00:32.9]}
27... Qc4+ {[%clk 0:00:40.5]} 28. Ka3 {[%clk 0:00:32.3]} 28... Qa6+ {[%clk
0:00:38.4]} 29. Kb3 {[%clk 0:00:27.6]} 29... Qb6+ {[%clk 0:00:39.3]} 30. Kc3
{[%clk 0:00:28.1]} 30... Qxd8 {[%clk 0:00:40.1]} 31. Rb1 {[%clk 0:00:28]} 31...
Qf6+ {[%clk 0:00:37.4]} 32. Kb3 {[%clk 0:00:26.4]} 32... Qe6+ {[%clk 0:00:37]}
33. Ka3 {[%clk 0:00:25.9]} 33... Qd6+ {[%clk 0:00:36.4]} 34. Ka4 {[%clk
0:00:24.4]} 34... Qxh2 {[%clk 0:00:31.2]} 35. Ng5 {[%clk 0:00:22.8]} 35... Qf4+
{[%clk 0:00:26.2]} 36. Ne4 {[%clk 0:00:22.8]} 36... f5 {[%clk 0:00:24.7]} 37.
Rb7+ {[%clk 0:00:23.4]} 37... Kh6 {[%clk 0:00:22.1]} 38. g3 {[%clk 0:00:24.3]}
38... Qe5 {[%clk 0:00:18.3]} 39. Nd2 {[%clk 0:00:12.7]} 39... Qd4+ {[%clk
0:00:17]} 0-1

[Event "*** Titled Tuesday Blitz"]
[Site "Chess.com"]
[Date "2020.11.24"]
[Round "2"]
[White "ama18"]
[Black "BJthechessgod"]
[Result "1-0"]
[WhiteElo "2453"]
[BlackElo "2235"]
[TimeControl "180+1"]
[EndTime "10:33:40 PST"]
[Termination "ama18 won by resignation"]

1. e4 {[%clk 0:03:00.9]} 1... c5 {[%clk 0:03:00.4]} 2. Nf3 {[%clk 0:03:00.6]}
2... d6 {[%clk 0:03:00.8]} 3. d4 {[%clk 0:03:01.2]} 3... cxd4 {[%clk 0:03:00.4]}
4. Nxd4 {[%clk 0:03:02.1]} 4... Nf6 {[%clk 0:03:00.1]} 5. Nc3 {[%clk 0:03:02.8]}
5... g6 {[%clk 0:03:00.4]} 6. Be3 {[%clk 0:03:02]} 6... Bg7 {[%clk 0:03:00.4]}
7. f3 {[%clk 0:03:02.4]} 7... O-O {[%clk 0:02:57.3]} 8. Qd2 {[%clk 0:03:02.3]}
8... Nc6 {[%clk 0:02:53.9]} 9. O-O-O {[%clk 0:03:01.7]} 9... d5 {[%clk
0:02:52.3]} 10. exd5 {[%clk 0:02:57]} 10... Nxd5 {[%clk 0:02:51.3]} 11. Nxc6
{[%clk 0:02:57.6]} 11... bxc6 {[%clk 0:02:50.4]} 12. Bd4 {[%clk 0:02:58.3]}
12... Bxd4 {[%clk 0:02:41.1]} 13. Qxd4 {[%clk 0:02:59.2]} 13... Qb6 {[%clk
0:02:41.6]} 14. Na4 {[%clk 0:02:59]} 14... Qc7 {[%clk 0:02:40]} 15. Bc4 {[%clk
0:02:51.4]} 15... Be6 {[%clk 0:02:37.7]} 16. Nc5 {[%clk 0:02:42.7]} 16... Rad8
{[%clk 0:01:47.2]} 17. Nxe6 {[%clk 0:02:39.4]} 17... fxe6 {[%clk 0:01:45.1]} 18.
Qe4 {[%clk 0:02:39.3]} 18... Rd6 {[%clk 0:01:33.8]} 19. Bb3 {[%clk 0:02:35.9]}
19... Rf4 {[%clk 0:01:31.9]} 20. Qe5 {[%clk 0:02:30.9]} 20... Rf5 {[%clk
0:01:32]} 21. Qe2 {[%clk 0:02:24]} 21... a5 {[%clk 0:01:24.8]} 22. a3 {[%clk
0:02:20.1]} 22... Kf7 {[%clk 0:01:15.6]} 23. Qe4 {[%clk 0:02:08.2]} 23... Rf4
{[%clk 0:01:07.3]} 24. Qe5 {[%clk 0:02:05.4]} 24... a4 {[%clk 0:01:04.9]} 25.
Bxd5 {[%clk 0:01:56.8]} 25... Rf5 {[%clk 0:01:05.1]} 26. Bxe6+ {[%clk
0:01:52.8]} 26... Ke8 {[%clk 0:00:52.1]} 27. Qe4 {[%clk 0:01:31.9]} 27... Rf6
{[%clk 0:00:43.3]} 28. Ba2 {[%clk 0:01:22.9]} 28... Qa5 {[%clk 0:00:27.4]} 29.
c3 {[%clk 0:01:13.8]} 29... Qg5+ {[%clk 0:00:24]} 30. Kb1 {[%clk 0:01:10.7]}
30... Qxg2 {[%clk 0:00:23.8]} 31. Rhe1 {[%clk 0:00:59.2]} 31... Rxd1+ {[%clk
0:00:17.1]} 32. Rxd1 {[%clk 0:00:57.8]} 32... Qxf3 {[%clk 0:00:17.7]} 33. Qxa4
{[%clk 0:00:43.8]} 33... Kf8 {[%clk 0:00:12.5]} 34. Qc2 {[%clk 0:00:36.3]} 34...
Qf2 {[%clk 0:00:08.5]} 35. Bb3 {[%clk 0:00:23.7]} 35... Qxc2+ {[%clk 0:00:06.4]}
36. Kxc2 {[%clk 0:00:23.4]} 36... Rf2+ {[%clk 0:00:07.1]} 37. Rd2 {[%clk
0:00:23.8]} 37... Rf5 {[%clk 0:00:06.4]} 38. a4 {[%clk 0:00:23.2]} 38... e5
{[%clk 0:00:05.6]} 39. a5 {[%clk 0:00:22.5]} 39... Ke7 {[%clk 0:00:05.8]} 40. a6
{[%clk 0:00:22.4]} 40... Rf8 {[%clk 0:00:06.5]} 41. Bc4 {[%clk 0:00:22.1]} 41...
Ra8 {[%clk 0:00:06.4]} 42. b4 {[%clk 0:00:22.5]} 42... Kf6 {[%clk 0:00:03.1]}
43. Kb3 {[%clk 0:00:22]} 43... g5 {[%clk 0:00:03.4]} 44. Ka4 {[%clk 0:00:21.8]}
44... h5 {[%clk 0:00:04.2]} 45. Ka5 {[%clk 0:00:21.7]} 45... g4 {[%clk
0:00:04.6]} 46. Kb6 {[%clk 0:00:21.7]} 1-0

[Event "*** Titled Tuesday Blitz"]
[Site "Chess.com"]
[Date "2020.11.24"]
[Round "2"]
[White "Fandorine"]
[Black "Marty435"]
[Result "1-0"]
[WhiteElo "2862"]
[BlackElo "2525"]
[TimeControl "180+1"]
[EndTime "10:33:41 PST"]
[Termination "Fandorine won by resignation"]

1. Nf3 {[%clk 0:03:00.9]} 1... d5 {[%clk 0:02:59.2]} 2. c4 {[%clk 0:03:00.4]}
2... e6 {[%clk 0:02:58.9]} 3. g3 {[%clk 0:02:59.4]} 3... Nf6 {[%clk 0:02:59.3]}
4. Bg2 {[%clk 0:02:56.9]} 4... Be7 {[%clk 0:02:59.1]} 5. O-O {[%clk 0:02:56.4]}
5... O-O {[%clk 0:02:59.8]} 6. b3 {[%clk 0:02:56.5]} 6... b6 {[%clk 0:02:59.3]}
7. Bb2 {[%clk 0:02:56.9]} 7... Bb7 {[%clk 0:02:59.9]} 8. e3 {[%clk 0:02:57.5]}
8... c5 {[%clk 0:02:58.9]} 9. Qe2 {[%clk 0:02:51.5]} 9... Qc8 {[%clk 0:02:52.1]}
10. Nc3 {[%clk 0:02:49.1]} 10... Rd8 {[%clk 0:02:51.3]} 11. Rfc1 {[%clk
0:02:35.8]} 11... d4 {[%clk 0:02:46.7]} 12. exd4 {[%clk 0:02:36]} 12... cxd4
{[%clk 0:02:47.6]} 13. Nd5 {[%clk 0:02:36.6]} 13... exd5 {[%clk 0:02:34.3]} 14.
Qxe7 {[%clk 0:02:35.2]} 14... Nc6 {[%clk 0:02:31.4]} 15. Qa3 {[%clk 0:02:35]}
15... dxc4 {[%clk 0:02:29.7]} 16. Rxc4 {[%clk 0:02:34.5]} 16... Qf5 {[%clk
0:02:10.6]} 17. Rac1 {[%clk 0:02:23]} 17... Na5 {[%clk 0:01:50.4]} 18. Nxd4
{[%clk 0:02:14.6]} 18... Qd3 {[%clk 0:01:08.4]} 19. Bxb7 {[%clk 0:02:08.5]}
19... Nxb7 {[%clk 0:01:04.9]} 20. Nc6 {[%clk 0:02:09]} 20... Re8 {[%clk
0:00:57.6]} 21. Bxf6 {[%clk 0:02:04]} 21... gxf6 {[%clk 0:00:56.9]} 22. Rg4+
{[%clk 0:02:01.7]} 22... Kh8 {[%clk 0:00:56.2]} 23. Qb2 {[%clk 0:02:02.1]} 23...
Re6 {[%clk 0:00:51.7]} 24. Nd4 {[%clk 0:01:58.1]} 24... Re4 {[%clk 0:00:41.6]}
25. Nf5 {[%clk 0:01:48.4]} 25... Re6 {[%clk 0:00:28]} 26. Nh6 {[%clk 0:01:43.9]}
26... Nd6 {[%clk 0:00:20.5]} 27. Qd4 {[%clk 0:01:41.9]} 27... Qxd4 {[%clk
0:00:20.1]} 28. Rxd4 {[%clk 0:01:42.8]} 28... Kg7 {[%clk 0:00:08.7]} 29. Rxd6
{[%clk 0:01:41.9]} 29... Kxh6 {[%clk 0:00:09.1]} 30. Rxe6 {[%clk 0:01:40.4]}
30... fxe6 {[%clk 0:00:10]} 31. Rc6 {[%clk 0:01:40.9]} 31... Re8 {[%clk
0:00:09.7]} 32. Kf1 {[%clk 0:01:40.5]} 32... Kg6 {[%clk 0:00:09.8]} 33. Ke2
{[%clk 0:01:41.1]} 33... e5 {[%clk 0:00:08.5]} 34. Rc7 {[%clk 0:01:37.7]} 34...
a5 {[%clk 0:00:07.4]} 35. Rb7 {[%clk 0:01:37.3]} 35... Re6 {[%clk 0:00:07.4]}
36. Ke3 {[%clk 0:01:37.8]} 36... Rc6 {[%clk 0:00:06.9]} 37. a4 {[%clk
0:01:36.7]} 37... Rd6 {[%clk 0:00:06.7]} 38. g4 {[%clk 0:01:31]} 38... h5 {[%clk
0:00:05.8]} 39. f3 {[%clk 0:01:28.8]} 39... hxg4 {[%clk 0:00:05.9]} 40. fxg4
{[%clk 0:01:29.7]} 40... Kg5 {[%clk 0:00:03.3]} 41. h3 {[%clk 0:01:28.8]} 41...
Kg6 {[%clk 0:00:03.4]} 42. h4 {[%clk 0:01:24.2]} 42... f5 {[%clk 0:00:03.8]} 43.
Re7 {[%clk 0:00:50.4]} 43... Kf6 {[%clk 0:00:02.1]} 44. Rh7 {[%clk 0:00:50.6]}
44... fxg4 {[%clk 0:00:02.6]} 45. Rh6+ {[%clk 0:00:50.5]} 45... Ke7 {[%clk
0:00:03.1]} 46. Rxd6 {[%clk 0:00:50.9]} 46... Kxd6 {[%clk 0:00:04]} 47. Kf2
{[%clk 0:00:42.3]} 47... Ke6 {[%clk 0:00:03.9]} 48. Kg3 {[%clk 0:00:42.7]} 48...
Kf5 {[%clk 0:00:04.5]} 49. d3 {[%clk 0:00:43.4]} 49... Kg6 {[%clk 0:00:01.4]}
50. Kxg4 {[%clk 0:00:43.6]} 50... Kh6 {[%clk 0:00:02.2]} 51. Kf5 {[%clk
0:00:43.6]} 51... Kh5 {[%clk 0:00:03.1]} 52. Kxe5 {[%clk 0:00:43.8]} 52... Kxh4
{[%clk 0:00:04]} 53. d4 {[%clk 0:00:44.7]} 53... Kg5 {[%clk 0:00:04.2]} 54. d5
{[%clk 0:00:45.6]} 54... Kg6 {[%clk 0:00:04]} 55. Ke6 {[%clk 0:00:46.3]} 1-0

[Event "*** Titled Tuesday Blitz"]
[Site "Chess.com"]
[Date "2020.11.24"]
[Round "2"]
[White "tylityli"]
[Black "Ermito2020"]
[Result "0-1"]
[WhiteElo "2341"]
[BlackElo "2637"]
[TimeControl "180+1"]
[EndTime "10:33:42 PST"]
[Termination "Ermito2020 won by resignation"]

1. d4 {[%clk 0:03:00.9]} 1... Nf6 {[%clk 0:02:59.1]} 2. c4 {[%clk 0:02:59.9]}
2... g6 {[%clk 0:02:59.3]} 3. Nc3 {[%clk 0:02:59.1]} 3... Bg7 {[%clk 0:02:59.9]}
4. e4 {[%clk 0:02:58.4]} 4... d6 {[%clk 0:03:00.4]} 5. Nge2 {[%clk 0:02:57.7]}
5... O-O {[%clk 0:03:00.2]} 6. Ng3 {[%clk 0:02:57.4]} 6... c5 {[%clk 0:02:56.3]}
7. d5 {[%clk 0:02:55.4]} 7... e6 {[%clk 0:02:56]} 8. Be2 {[%clk 0:02:54.1]} 8...
exd5 {[%clk 0:02:56]} 9. cxd5 {[%clk 0:02:50]} 9... a6 {[%clk 0:02:54.8]} 10. a4
{[%clk 0:02:49]} 10... Re8 {[%clk 0:02:54.6]} 11. O-O {[%clk 0:02:45.9]} 11...
Nbd7 {[%clk 0:02:52.9]} 12. Bg5 {[%clk 0:02:42.2]} 12... h6 {[%clk 0:02:51.5]}
13. Bf4 {[%clk 0:02:41.7]} 13... Ne5 {[%clk 0:02:51.2]} 14. Qd2 {[%clk
0:02:37.1]} 14... g5 {[%clk 0:02:49.5]} 15. Be3 {[%clk 0:02:34.3]} 15... Nfg4
{[%clk 0:02:44.1]} 16. Bxg4 {[%clk 0:02:29.4]} 16... Nxg4 {[%clk 0:02:45]} 17.
h3 {[%clk 0:02:13.4]} 17... Nxe3 {[%clk 0:02:43.6]} 18. Qxe3 {[%clk 0:02:13.9]}
18... Bd4 {[%clk 0:02:37.5]} 19. Qf3 {[%clk 0:02:11.3]} 19... Qf6 {[%clk
0:02:24.7]} 20. Qh5 {[%clk 0:02:02.1]} 20... Bd7 {[%clk 0:02:10.6]} 21. Kh1
{[%clk 0:01:58.9]} 21... Qg6 {[%clk 0:02:03.9]} 22. Qf3 {[%clk 0:01:53.9]} 22...
g4 {[%clk 0:02:03.2]} 23. hxg4 {[%clk 0:01:52.5]} 23... Bxg4 {[%clk 0:02:02.8]}
24. Qd3 {[%clk 0:01:45.3]} 24... Re5 {[%clk 0:01:41.7]} 25. Nce2 {[%clk
0:01:28.2]} 25... Rh5+ {[%clk 0:01:11.9]} 26. Kg1 {[%clk 0:01:20.9]} 26... Bxe2
{[%clk 0:01:10.8]} 27. Qxe2 {[%clk 0:01:14.2]} 27... Rg5 {[%clk 0:01:08.6]} 28.
Kh2 {[%clk 0:00:52.8]} 28... Rg4 {[%clk 0:01:01.6]} 29. Qf3 {[%clk 0:00:45.8]}
29... Re8 {[%clk 0:00:49.4]} 30. Rae1 {[%clk 0:00:41.2]} 30... Be5 {[%clk
0:00:17.2]} 31. b3 {[%clk 0:00:24.2]} 31... Rf4 {[%clk 0:00:13.8]} 32. Qe2
{[%clk 0:00:16.2]} 32... Rxe4 {[%clk 0:00:11.7]} 33. Qf3 {[%clk 0:00:11]} 33...
Bxg3+ {[%clk 0:00:08.4]} 34. fxg3 {[%clk 0:00:08.6]} 34... Rxe1 {[%clk
0:00:08.3]} 35. Rxe1 {[%clk 0:00:07.2]} 35... Rxe1 {[%clk 0:00:09.2]} 36. Qf4
{[%clk 0:00:06.6]} 36... Re5 {[%clk 0:00:09.5]} 37. g4 {[%clk 0:00:05.4]} 37...
Qg5 {[%clk 0:00:08.9]} 0-1

[Event "*** Titled Tuesday Blitz"]
[Site "Chess.com"]
[Date "2020.11.24"]
[Round "2"]
[White "Sjakkerntobi"]
[Black "isainz"]
[Result "1-0"]
[WhiteElo "2377"]
[BlackElo "2036"]
[TimeControl "180+1"]
[EndTime "10:33:45 PST"]
[Termination "Sjakkerntobi won by checkmate"]

1. e4 {[%clk 0:03:00.9]} 1... c5 {[%clk 0:02:55.9]} 2. Nf3 {[%clk 0:03:00.7]}
2... Nc6 {[%clk 0:02:54.7]} 3. d4 {[%clk 0:03:01]} 3... cxd4 {[%clk 0:02:53.7]}
4. Nxd4 {[%clk 0:03:01.9]} 4... e5 {[%clk 0:02:53.3]} 5. Nb5 {[%clk 0:03:02.2]}
5... d6 {[%clk 0:02:52.8]} 6. a4 {[%clk 0:03:01.4]} 6... Be6 {[%clk 0:02:49]} 7.
N1c3 {[%clk 0:02:52.9]} 7... a6 {[%clk 0:02:48.7]} 8. Na3 {[%clk 0:02:52.6]}
8... Be7 {[%clk 0:02:48.7]} 9. Nc4 {[%clk 0:02:52.1]} 9... Rb8 {[%clk
0:02:11.8]} 10. Ne3 {[%clk 0:02:29.8]} 10... Bg5 {[%clk 0:02:05.7]} 11. Ncd5
{[%clk 0:02:22.7]} 11... Bxd5 {[%clk 0:02:03.1]} 12. Nxd5 {[%clk 0:02:21.3]}
12... Bxc1 {[%clk 0:01:59.7]} 13. Qxc1 {[%clk 0:02:21.4]} 13... Nf6 {[%clk
0:01:58.3]} 14. Nc3 {[%clk 0:02:07.2]} 14... O-O {[%clk 0:01:56.9]} 15. Bc4
{[%clk 0:02:06.6]} 15... Nxe4 {[%clk 0:01:44.9]} 16. Nxe4 {[%clk 0:02:04.2]}
16... d5 {[%clk 0:01:45.1]} 17. Ba2 {[%clk 0:01:57.7]} 17... dxe4 {[%clk
0:01:43.3]} 18. O-O {[%clk 0:01:58.6]} 18... Kh8 {[%clk 0:01:41.8]} 19. Qe3
{[%clk 0:01:47.9]} 19... f5 {[%clk 0:01:40.2]} 20. Rad1 {[%clk 0:01:46.9]} 20...
Qe7 {[%clk 0:01:35.4]} 21. c3 {[%clk 0:01:42.4]} 21... Rbd8 {[%clk 0:01:23.7]}
22. Qh3 {[%clk 0:01:39.4]} 22... Qg5 {[%clk 0:01:10.3]} 23. Be6 {[%clk
0:01:21.3]} 23... Rxd1 {[%clk 0:01:05.3]} 24. Rxd1 {[%clk 0:01:22.2]} 24... f4
{[%clk 0:00:58.9]} 25. Bf5 {[%clk 0:01:19.2]} 25... Qxf5 {[%clk 0:00:47.6]} 26.
b4 {[%clk 0:01:12.8]} 26... Qxh3 {[%clk 0:00:46.4]} 27. gxh3 {[%clk 0:01:12]}
27... a5 {[%clk 0:00:43.9]} 28. b5 {[%clk 0:01:12.2]} 28... Ne7 {[%clk 0:00:43]}
29. Rd7 {[%clk 0:01:12.2]} 29... Nf5 {[%clk 0:00:38.4]} 30. Rxb7 {[%clk
0:01:11.2]} 30... Rc8 {[%clk 0:00:37.3]} 31. Rd7 {[%clk 0:00:45.2]} 31... e3
{[%clk 0:00:36.9]} 32. fxe3 {[%clk 0:00:44.6]} 32... Nxe3 {[%clk 0:00:36.5]} 33.
b6 {[%clk 0:00:43.1]} 33... h6 {[%clk 0:00:36.2]} 34. b7 {[%clk 0:00:42.7]}
34... Rb8 {[%clk 0:00:36.4]} 35. Kf2 {[%clk 0:00:40.7]} 35... Nc4 {[%clk
0:00:33.5]} 36. Rc7 {[%clk 0:00:40.1]} 36... Nd6 {[%clk 0:00:31.2]} 37. Kf3
{[%clk 0:00:34.6]} 37... Rxb7 {[%clk 0:00:29.7]} 38. Rc6 {[%clk 0:00:34.6]}
38... Nf5 {[%clk 0:00:21.7]} 39. Ke4 {[%clk 0:00:32.7]} 39... Ne3 {[%clk
0:00:18.8]} 40. Rc5 {[%clk 0:00:27.8]} 40... Re7 {[%clk 0:00:16.5]} 41. Rxa5
{[%clk 0:00:26.6]} 41... Nc4 {[%clk 0:00:14.8]} 42. Rd5 {[%clk 0:00:20.7]} 42...
g5 {[%clk 0:00:10.7]} 43. a5 {[%clk 0:00:20.5]} 43... Ra7 {[%clk 0:00:09.4]} 44.
Rc5 {[%clk 0:00:19.9]} 44... Nxa5 {[%clk 0:00:08]} 45. Kxe5 {[%clk 0:00:19.8]}
45... Nb7 {[%clk 0:00:06.8]} 46. Rc7 {[%clk 0:00:19.2]} 46... Ra5+ {[%clk
0:00:06.7]} 47. Kf6 {[%clk 0:00:19.6]} 47... Nc5 {[%clk 0:00:04.4]} 48. Kg6
{[%clk 0:00:18.6]} 48... Ne4 {[%clk 0:00:04.3]} 49. Rc8# {[%clk 0:00:18.8]} 1-0

[Event "*** Titled Tuesday Blitz"]
[Site "Chess.com"]
[Date "2020.11.24"]
[Round "2"]
[White "ChessicallyInclined"]
[Black "Smirnov_Pavel"]
[Result "0-1"]
[WhiteElo "2514"]
[BlackElo "2817"]
[TimeControl "180+1"]
[EndTime "10:33:46 PST"]
[Termination "Smirnov_Pavel won by resignation"]

1. d4 {[%clk 0:03:00.9]} 1... Nf6 {[%clk 0:02:59.3]} 2. c4 {[%clk 0:03:01]} 2...
e6 {[%clk 0:02:59.8]} 3. Nc3 {[%clk 0:03:01.4]} 3... Bb4 {[%clk 0:02:59.8]} 4.
e3 {[%clk 0:03:01.9]} 4... O-O {[%clk 0:02:59.3]} 5. Ne2 {[%clk 0:03:02.5]} 5...
c6 {[%clk 0:02:59]} 6. a3 {[%clk 0:03:02.4]} 6... Ba5 {[%clk 0:02:58.7]} 7. b4
{[%clk 0:03:02.3]} 7... Bc7 {[%clk 0:02:59.2]} 8. c5 {[%clk 0:03:02.9]} 8... b6
{[%clk 0:02:49.4]} 9. g3 {[%clk 0:03:00.1]} 9... a5 {[%clk 0:02:49.1]} 10. Rb1
{[%clk 0:02:56.8]} 10... axb4 {[%clk 0:02:48.6]} 11. axb4 {[%clk 0:02:57.7]}
11... bxc5 {[%clk 0:02:33.3]} 12. bxc5 {[%clk 0:02:58.6]} 12... Ba6 {[%clk
0:02:22.6]} 13. Bg2 {[%clk 0:02:38.7]} 13... d5 {[%clk 0:02:20.5]} 14. cxd6
{[%clk 0:02:36]} 14... Qxd6 {[%clk 0:02:17.7]} 15. O-O {[%clk 0:02:05]} 15...
Nbd7 {[%clk 0:02:17.1]} 16. Re1 {[%clk 0:01:45.8]} 16... e5 {[%clk 0:02:13.9]}
17. dxe5 {[%clk 0:01:33.9]} 17... Nxe5 {[%clk 0:02:14.8]} 18. Nf4 {[%clk
0:01:14.1]} 18... Rfd8 {[%clk 0:02:07.3]} 19. Qxd6 {[%clk 0:01:10.9]} 19... Bxd6
{[%clk 0:02:06.1]} 20. Ne4 {[%clk 0:01:02]} 20... Nxe4 {[%clk 0:01:57.2]} 21.
Bxe4 {[%clk 0:01:02.9]} 21... f5 {[%clk 0:01:52.9]} 22. Bg2 {[%clk 0:00:51.5]}
22... Bc4 {[%clk 0:01:09.9]} 23. Bb2 {[%clk 0:00:47.9]} 23... g5 {[%clk
0:01:09.4]} 24. Nh3 {[%clk 0:00:41]} 24... Nd3 {[%clk 0:00:37.7]} 25. Red1
{[%clk 0:00:34.4]} 25... g4 {[%clk 0:00:37.7]} 26. Nf4 {[%clk 0:00:28.9]} 26...
Bxf4 {[%clk 0:00:33.8]} 27. exf4 {[%clk 0:00:14.7]} 27... Ba2 {[%clk 0:00:17.4]}
28. Bxc6 {[%clk 0:00:06.9]} 28... Rac8 {[%clk 0:00:15.4]} 29. Ra1 {[%clk
0:00:04.1]} 29... Bb3 {[%clk 0:00:13.5]} 30. Rxd3 {[%clk 0:00:02.4]} 30... Rxd3
{[%clk 0:00:12.4]} 31. Bg2 {[%clk 0:00:03]} 31... Rc2 {[%clk 0:00:12.2]} 32. Be5
{[%clk 0:00:03.4]} 32... Rdd2 {[%clk 0:00:12]} 33. Ra8+ {[%clk 0:00:03.4]} 33...
Kf7 {[%clk 0:00:11.6]} 34. Ra7+ {[%clk 0:00:04.1]} 34... Ke6 {[%clk 0:00:11.2]}
35. Ra6+ {[%clk 0:00:04.7]} 35... Ke7 {[%clk 0:00:11.1]} 36. Ra7+ {[%clk
0:00:05.2]} 36... Rd7 {[%clk 0:00:11]} 37. Rxd7+ {[%clk 0:00:05.6]} 37... Kxd7
{[%clk 0:00:10.5]} 38. h3 {[%clk 0:00:06.5]} 38... h5 {[%clk 0:00:09.4]} 39.
hxg4 {[%clk 0:00:06.3]} 39... hxg4 {[%clk 0:00:10.3]} 40. Bf1 {[%clk 0:00:06.7]}
40... Ke6 {[%clk 0:00:10.3]} 41. Bd3 {[%clk 0:00:06.9]} 41... Rc1+ {[%clk
0:00:10.5]} 42. Kh2 {[%clk 0:00:05.2]} 42... Bd5 {[%clk 0:00:11.4]} 43. f3
{[%clk 0:00:02.6]} 43... Bxf3 {[%clk 0:00:10.4]} 0-1

[Event "*** Titled Tuesday Blitz"]
[Site "Chess.com"]
[Date "2020.11.24"]
[Round "2"]
[White "Brave_spirit12"]
[Black "swimmerchess"]
[Result "0-1"]
[WhiteElo "2502"]
[BlackElo "2781"]
[TimeControl "180+1"]
[EndTime "10:33:46 PST"]
[Termination "swimmerchess won by resignation"]

1. e4 {[%clk 0:03:00.5]} 1... e5 {[%clk 0:02:59.5]} 2. Nf3 {[%clk 0:02:57.3]}
2... Nc6 {[%clk 0:02:59.7]} 3. Bc4 {[%clk 0:02:52.7]} 3... Nf6 {[%clk 0:02:59]}
4. O-O {[%clk 0:02:48.7]} 4... Nxe4 {[%clk 0:02:50.9]} 5. d4 {[%clk 0:02:44.6]}
5... exd4 {[%clk 0:02:45.2]} 6. Nxd4 {[%clk 0:02:40.3]} 6... d5 {[%clk
0:02:36.3]} 7. Bb5 {[%clk 0:02:29.9]} 7... Bd7 {[%clk 0:02:35.9]} 8. Re1 {[%clk
0:02:28.6]} 8... Be7 {[%clk 0:02:30.9]} 9. Bxc6 {[%clk 0:02:28.3]} 9... bxc6
{[%clk 0:02:30.8]} 10. f3 {[%clk 0:02:28.4]} 10... Nf6 {[%clk 0:02:15.9]} 11.
Qe2 {[%clk 0:02:27.9]} 11... c5 {[%clk 0:02:14.5]} 12. Nb3 {[%clk 0:02:27]}
12... Be6 {[%clk 0:02:08.8]} 13. f4 {[%clk 0:02:14.4]} 13... g6 {[%clk
0:01:39.2]} 14. Nc3 {[%clk 0:01:41]} 14... O-O {[%clk 0:01:34.5]} 15. f5 {[%clk
0:01:41.2]} 15... gxf5 {[%clk 0:01:34.3]} 16. Bh6 {[%clk 0:01:40.1]} 16... Re8
{[%clk 0:01:33.5]} 17. h3 {[%clk 0:01:35.6]} 17... Kh8 {[%clk 0:01:30.2]} 18.
Rad1 {[%clk 0:01:19.6]} 18... Rg8 {[%clk 0:01:22.9]} 19. Qf2 {[%clk 0:01:16.2]}
19... d4 {[%clk 0:01:11.2]} 20. Ne2 {[%clk 0:01:02.4]} 20... Rg6 {[%clk
0:01:04]} 21. Bc1 {[%clk 0:00:45]} 21... Ne4 {[%clk 0:00:59.9]} 22. Qf1 {[%clk
0:00:44.4]} 22... Bd6 {[%clk 0:00:52.1]} 23. Bf4 {[%clk 0:00:41.9]} 23... Qh4
{[%clk 0:00:42.5]} 24. Bxd6 {[%clk 0:00:19.9]} 24... cxd6 {[%clk 0:00:43.4]} 25.
Nf4 {[%clk 0:00:20.5]} 25... Rg7 {[%clk 0:00:43.6]} 26. c3 {[%clk 0:00:17]}
26... dxc3 {[%clk 0:00:41.1]} 27. bxc3 {[%clk 0:00:16.9]} 27... Rag8 {[%clk
0:00:40.7]} 28. Nd2 {[%clk 0:00:08.7]} 28... Nxc3 {[%clk 0:00:31.7]} 29. Rc1
{[%clk 0:00:07.3]} 29... Nxa2 {[%clk 0:00:30.4]} 30. Ra1 {[%clk 0:00:06.4]}
30... a5 {[%clk 0:00:26.5]} 31. Rxe6 {[%clk 0:00:04]} 31... fxe6 {[%clk
0:00:23.6]} 32. Rxa2 {[%clk 0:00:04.5]} 32... e5 {[%clk 0:00:24.2]} 33. Ne2
{[%clk 0:00:02.3]} 33... Rxg2+ {[%clk 0:00:21.8]} 34. Qxg2 {[%clk 0:00:03.2]}
34... Qe1+ {[%clk 0:00:17.1]} 35. Nf1 {[%clk 0:00:02.3]} 35... Rxg2+ {[%clk
0:00:16.6]} 36. Kxg2 {[%clk 0:00:03.2]} 36... a4 {[%clk 0:00:16.8]} 37. Neg3
{[%clk 0:00:03.5]} 37... f4 {[%clk 0:00:15.8]} 38. Ne2 {[%clk 0:00:02.9]} 38...
f3+ {[%clk 0:00:15.5]} 39. Kxf3 {[%clk 0:00:02.8]} 39... Qxf1+ {[%clk
0:00:15.9]} 40. Ke3 {[%clk 0:00:03.4]} 40... Qxh3+ {[%clk 0:00:16]} 41. Kd2
{[%clk 0:00:04]} 41... Qb3 {[%clk 0:00:16.1]} 42. Ra1 {[%clk 0:00:03.7]} 42...
Qb2+ {[%clk 0:00:16.3]} 0-1